Cogmind - Beta 15 @@@ ROGUE MODE // 2025.08.08 @ 21:32:14 Player: Plexion Result: Destroyed by Enhanced Grunt with Neutron Cannon Performance ------------- Evolutions (4) 2000 Regions Visited (10) 2000 Robots Destroyed (98) 490 Value Destroyed (2360) 2360 Prototype IDs (25) 500 Alien Tech Used (0) 0 Bonus (1070) 1070 TOTAL SCORE: 8420 Bonus ------- Registered with UFD 300 Met Optimus in HQ 500 Met Data Miner 300 Friendly Fire -30 Cogmind --------- Core Integrity 0/850 Matter 290/300 Energy 90/100 System Corruption 0% Temperature Cool (0) Movement Core (250) Ox4 Location -6/Data Miner Parts ------- > --- POWER (1) -------- (None) > --- PROPULSION (5) --- (None) > --- UTILITY (7) ------ Medium Storage Unit Advanced Signal Interpreter Melee Analysis Suite Hacking Suite Improved System Shield > --- WEAPON (2) ------- Companion Sword > --- INVENTORY (10) --- Deep Structural Scanner Machine Analyzer Enhanced Optical Array Advanced Sensor Array Seismic Detector Transmission Jammer Personal Teleporter v0.10 (0/15) Improved Grenade Launcher Peak State ------------ > --- POWER ------------ Cooled Ion Engine > --- PROPULSION ------- VTOL Module Nuclear Pulse Thruster Nuclear Pulse Thruster Nuclear Pulse Thruster Nuclear Pulse Thruster > --- UTILITY ---------- Medium Storage Unit Advanced Sensor Array Advanced Signal Interpreter Melee Analysis Suite Hacking Suite Hacking Suite Improved System Shield > --- WEAPON ----------- Makeshift Sword Companion Sword > --- INVENTORY -------- Deep Structural Scanner Machine Analyzer Enhanced Optical Array Seismic Detector Improved Melee Analysis Suite Transmission Jammer Improved Utility Shielding Personal Teleporter v0.10 Improved Grenade Launcher CPS Tube [Rating: 63] Favorites ----------- Power Cooled Ion Engine Engine Cooled Ion Engine Power Core Light Nuclear Core Propulsion Light Treads Treads Light Treads Wheel Armored Wheel Flight Unit Nuclear Pulse Thruster Utility Hardened Medium Armor Plating Device Seismic Detector Storage Huge Storage Unit Processor Melee Analysis Suite Hackware Hacking Suite Protection Hardened Medium Armor Plating Weapon Advanced Beam Cannon Energy Gun Medium Laser Energy Cannon Advanced Beam Cannon Ballistic Gun Assault Rifle Ballistic Cannon Light Cannon Launcher Shock Bomb Launcher Special Weapon Mining Laser Impact Weapon Hammer Slashing Weapon Companion Sword Build | -11 -10 -10 -9 -9 -9 -9 -6 -6 -6 -6 ------- Run | Yrd Mat Min Mat Sto Rec Scr Fac Low Low Dat Slots Evolved 8 | . . . 2 . . . 6 . . . Power . | . . . . . . . . . . . Propulsion 3 | . . . 1 . . . 2 . . . Utility 5 | . . . 1 . . . 4 . . . Weapon . | . . . . . . . . . . . Parts Attached 76 | 8 2 2 25 3 2 9 18 2 2 3 Power 5 | 2 . . 2 . 1 . . . . . Engine 4 | 2 . . 1 . 1 . . . . . Core 1 | . . . 1 . . . . . . . Reactor . | . . . . . . . . . . . Propulsion 26 | 2 . . 7 3 1 1 9 1 2 . Treads 10 | 2 . . 4 3 1 . . . . . Leg . | . . . . . . . . . . . Wheel 5 | . . . 2 . . 1 . . 2 . Hover . | . . . . . . . . . . . Flight 11 | . . . 1 . . . 9 1 . . Utility 31 | 2 1 1 10 . . 6 9 . . 2 Device 8 | 1 . . 5 . . . 1 . . 1 Storage 7 | 1 1 1 2 . . 1 1 . . . Processor 5 | . . . . . . . 4 . . 1 Hackware 4 | . . . . . . 2 2 . . . Protection 7 | . . . 3 . . 3 1 . . . Artifact . | . . . . . . . . . . . Weapon 14 | 2 1 1 6 . . 2 . 1 . 1 Energy Gun 1 | 1 . . . . . . . . . . Energy Cannon 4 | . . . 4 . . . . . . . Ballistic Gun 2 | 1 1 . . . . . . . . . Ballistic Cannon 1 | . . . 1 . . . . . . . Launcher 1 | . . . 1 . . . . . . . Special Weapon 2 | . . 1 . . . . . . . 1 Impact Weapon 1 | . . . . . . 1 . . . . Slashing Weapon 2 | . . . . . . 1 . 1 . . Piercing Weapon . | . . . . . . . . . . . Special Melee Weapon . | . . . . . . . . . . . Unidentified Prototypes 4 | . . . 3 . . 1 . . . . Corrupted Parts 1 | . . . . . . 1 . . . . System Corruption 3 | . . . . . . 3 . . . . Parts Lost 18 | . . 1 3 . . . . 1 4 9 Power 2 | . . 1 . . . . . . . 1 Propulsion 9 | . . . 1 . . . . 1 3 4 Utility 4 | . . . 1 . . . . . 1 2 Weapon 3 | . . . 1 . . . . . . 2 Highest Loss Streak 6 | . . 1 1 . . . . 1 2 6 To Critical Strikes 1 | . . 1 . . . . . . . . Average Backups 17 | 2 7 10 22 25 24 20 5 9 10 9 Power . | . 1 . . 1 . . . . . . Propulsion 5 | 1 3 4 7 9 8 6 . . . . Utility 5 | . . . 4 7 7 8 2 6 7 6 Weapon 5 | . 3 5 8 8 8 5 1 1 1 1 Tool/Special . | . . . . . . . . . . . Unused Backups 25 | . . 1 11 . 1 8 . . . 4 Power . | . . . . . . . . . . . Propulsion 5 | . . . 3 . 1 1 . . . . Utility 7 | . . . 4 . . 1 . . . 2 Weapon 12 | . . 1 4 . . 6 . . . 1 Tool/Special 1 | . . . . . . . . . . 1 Average Slot Usage (%) 95 | . 100 99 98 100 100 91 91 93 94 80 Engine 9 | . 14 13 9 . 4 11 6 6 6 4 Core 1 | . . . 1 11 6 . . . . . Treads 19 | . 28 28 22 22 22 21 . . . . Wheel 7 | . . . 10 11 11 11 . . 5 10 Flight 3 | . . . . . . . 32 32 22 9 Device 8 | . 14 14 10 11 11 5 5 4 3 3 Storage 10 | . 14 14 11 11 11 10 1 6 6 6 Processor 2 | . . . . . . . 13 13 13 14 Hackware 3 | . . . . . . . 18 20 19 13 Protection 9 | . . . 10 11 11 16 4 1 2 5 Energy Gun 2 | . 14 13 . . . . . . . . Energy Cannon 10 | . . . 19 22 22 10 . . . . Ballistic Gun 2 | . 14 14 . . . . . . . . Slashing Weapon 1 | . . . . . . . 6 6 13 10 Peak Build Rating 63 | 7 8 8 24 25 25 25 62 62 63 49 Average Rating 24 | 5 7 7 19 24 25 22 54 61 54 42 On Entrance 26 | . 7 8 8 24 25 25 25 62 61 45 Naked Turns . | . . . . . . . . . . . Heaviest Build 106 | 15 20 28 105 103 106 106 23 26 26 27 Greatest Support 60 | 40 40 40 60 12 12 60 30 30 28 20 Greatest Overweight (x) 10 | . . . 8 8 8 10 . . 2 5 Average Overweight (x) 3 | . . . 6 8 8 6 . . . 1 Largest Inventory Capacity 25 | 8 10 15 25 25 25 25 15 10 10 10 Average Capacity 19 | 7 9 12 24 25 25 22 6 10 10 10 Most Carried 25 | 4 10 13 25 25 25 25 15 10 10 10 Average Carried 17 | 2 7 10 22 25 24 20 5 9 10 9 Final Capacity 25 | 8 10 15 25 25 25 15 10 10 10 10 Final Carried 25 | 4 10 13 25 25 25 15 9 10 10 8 Class Distribution -------------------- 85% | Mutant 9% | Hacker-Sprinter Dominant Class ---------------- Mutant | -10/Materials Mutant | -10/Mines Mutant | -9/Materials Mutant | -9/Storage Mutant | -9/Recycling Mutant | -9/Scraptown Hacker-Sprinter | -6/Factory Hacker-Sprinter | -6/Lower Caves Hacker-Gladiator | -6/Lower Caves Scavenger-Gladiator | -6/Data Miner Resources | -11 -10 -10 -9 -9 -9 -9 -6 -6 -6 -6 ----------- Run | Yrd Mat Min Mat Sto Rec Scr Fac Low Low Dat Matter Collected 1517 | 243 157 98 519 50 10 54 301 25 40 20 Remotely . | . . . . . . . . . . . Salvage Created 4348 | 46 501 220 1663 435 151 . 631 328 155 218 Parts 244 | 6 31 23 108 25 4 . 20 11 4 12 Haulers Intercepted 6 | . 1 . 4 . . . 1 . . . Recyclers Shooed 4 | . 1 . 2 . . . 1 . . . Parts Field Recycled . | . . . . . . . . . . . Retrieved Matter . | . . . . . . . . . . . Parts Self-Destructed 8 | . . . . . . . . 4 4 . Prevented . | . . . . . . . . . . . Kills | -11 -10 -10 -9 -9 -9 -9 -6 -6 -6 -6 ------- Run | Yrd Mat Min Mat Sto Rec Scr Fac Low Low Dat Combat Hostiles Destroyed 66 | . 10 8 32 10 . . . 3 1 2 Melee 7 | . . . 1 . . . . 3 1 2 Guns 18 | . 10 8 . . . . . . . . Cannons 35 | . . . 25 10 . . . . . . AOE 5 | . . . 5 . . . . . . . Classes Destroyed 12 | 1 5 2 3 . . . . 1 . . Worker 2 | . . 1 1 . . . . . . . Builder 1 | . . 1 . . . . . . . . Tunneler 4 | 2 . 1 . . . . 1 . . . Hauler 6 | . 1 . 4 . . . 1 . . . Recycler 9 | . 2 . 2 . 2 . 3 . . . Operator 4 | . . . 2 . . . 2 . . . Watcher 6 | . 2 . 3 . . . 1 . . . Swarmer 24 | . 6 6 9 . . . . 3 . . Grunt 29 | . 4 2 14 8 . . . . 1 . Duelist 1 | . . . 1 . . . . . . . Sentry 10 | . . . 8 2 . . . . . . Enhanced Grunt 2 | . . . . . . . . . . 2 Decomposer 6 | . . . . . . . . . 6 . Samaritan 3 | . . . . . . . . 3 . . Best Kill Streak 7 | 2 4 7 6 4 2 . 2 3 1 1 Combat Bots Only 5 | . 4 5 5 4 . . . 3 1 1 Max Kills in Single Turn 4 | 1 2 2 4 1 1 . 1 1 1 1 Gunslinging 1 | . 1 . . . . . . . . . Exploded 4 | . . . 4 . . . . . . . Melee 1 | . . . 1 . . . . 1 1 1 Uniques/NPCs Destroyed . | . . . . . . . . . . . Combat | -11 -10 -10 -9 -9 -9 -9 -6 -6 -6 -6 -------- Run | Yrd Mat Min Mat Sto Rec Scr Fac Low Low Dat Hostile Shots Fired 357 | . 25 42 136 49 . . 17 22 32 34 Missed 110 | . 11 13 42 16 . . 9 4 9 6 Hits 247 | . 14 29 94 33 . . 8 18 23 28 Projectile 247 | . 14 29 94 33 . . 8 18 23 28 Critical Strikes 5 | . 1 1 2 . . . . . 1 . Damage Taken 3762 | . 136 284 1001 381 . 150 110 255 136 1309 Core 1113 | . . 41 166 48 . . 29 93 25 711 Absorbed by Shields . | . . . . . . . . . . . Redirected to Shielding 122 | . . . . . . . . 9 29 84 Core Remaining (%) 76 | 100 . 83 . . . 46 . . . . Volleys Fired 193 | 4 30 24 100 31 3 . . . . 1 Largest 2 | 2 2 2 2 2 2 . . . . 1 Hottest 136 | 70 70 100 136 136 136 . . . . . Shots Fired 339 | 8 60 45 166 53 6 . . . . 1 Gun 110 | 8 60 42 . . . . . . . . Cannon 221 | . . . 162 53 6 . . . . . Launcher 4 | . . . 4 . . . . . . . Special 4 | . . 3 . . . . . . . 1 Kinetic 66 | 4 30 21 11 . . . . . . . Thermal 268 | 4 30 24 151 53 6 . . . . . Explosive . | . . . . . . . . . . . Electromagnetic 4 | . . . 4 . . . . . . . Robot Hit Streak 19 | 4 9 4 19 15 3 . . . . 4 Robot Miss Streak 6 | 1 4 3 6 2 1 . . . . . Penetration Max . | . . . . . . . . . . . Secondary Targets 3 | . 2 1 . . . . . . . . Max Gunslinging Chain 1 | . 1 1 . . . . . . . . Shots Hit Robots 264 | 6 37 26 91 36 4 . 16 15 12 21 Core Hits 119 | 2 22 16 44 9 2 . 6 6 3 9 Critical Kills 1 | . . . 1 . . . . . . . Critical Parts Destroyed . | . . . . . . . . . . . Critical Strikes 6 | . 4 1 1 . . . . . . . Burn 5 | . 4 1 . . . . . . . . Meltdown 1 | . . . 1 . . . . . . . Melee Attacks 138 | . . . . . . . 31 25 27 55 Impact . | . . . . . . . . . . . Slashing 138 | . . . . . . . 31 25 27 55 Piercing . | . . . . . . . . . . . Sneak Attacks 21 | . . . . . . . 7 6 7 1 Combat Hostiles . | . . . . . . . . . . . Follow-up Attacks 1 | . . . . . . . . 1 . . Damage Inflicted 7534 | 71 470 365 2109 739 83 . 980 982 858 877 Guns 896 | 71 469 356 . . . . . . . . Cannons 2703 | . . . 1881 739 83 . . . . . Explosions 225 | . . . 225 . . . . . . . Melee 3697 | . . . . . . . 980 982 858 877 Ramming 13 | . 1 9 3 . . . . . . . Kinetic 553 | 34 243 207 69 . . . . . . . Thermal 3105 | 37 226 149 1871 739 83 . . . . . Explosive . | . . . . . . . . . . . Electromagnetic 166 | . . . 166 . . . . . . . Impact . | . . . . . . . . . . . Slashing 3697 | . . . . . . . 980 982 858 877 Piercing . | . . . . . . . . . . . Highest Corruption 3 | . . . . . . 3 . . . . Average Corruption 3 | . . . . . . 3 . . . . Corruption Purged . | . . . . . . . . . . . Corruption Blocked . | . . . . . . . . . . . Effects 5 | . . . . . . 5 . . . . Message Errors 2 | . . . . . . 2 . . . . Matter Fused 1 | . . . . . . 1 . . . . Energy Discharges 1 | . . . . . . 1 . . . . Alerts 1 | . . . . . . 1 . . . . Overload Shots . | . . . . . . . . . . . Overflow Damage 1126 | . . . 36 26 . . 287 250 387 140 Projectiles 46 | . . . 20 26 . . . . . . Explosions 16 | . . . 16 . . . . . . . Melee 1064 | . . . . . . . 287 250 387 140 Knockbacks . | . . . . . . . . . . . Impact . | . . . . . . . . . . . Kinetic . | . . . . . . . . . . . Secondary . | . . . . . . . . . . . Self-Inflicted Damage . | . . . . . . . . . . . Shots . | . . . . . . . . . . . Rammed 3 | . 1 2 . . . . . . . . Targets Rammed 4 | . 1 2 1 . . . . . . . Kicked . | . . . . . . . . . . . Crushed 1 | . . . 1 . . . . . . . Highest Temperature 294 | 36 54 127 294 168 21 . 5 . 20 . Average Temperature 65 | 19 18 41 82 77 14 . 3 . 20 . Received Heat Transfer 693 | . 57 66 285 192 . . 39 . 54 . Siege Activations . | . . . . . . . . . . . Martial Activations . | . . . . . . . . . . . Shielding Activations . | . . . . . . . . . . . Robots Disrupted . | . . . . . . . . . . . Combat Hostiles . | . . . . . . . . . . . Robots Corrupted . | . . . . . . . . . . . Combat Hostiles . | . . . . . . . . . . . Parts Fried 1 | . . . 1 . . . . . . . Impact Corruptions . | . . . . . . . . . . . Robots Melted 1 | . . . 1 . . . . . . . Combat Hostiles 1 | . . . 1 . . . . . . . Parts Melted 13 | . . 2 5 6 . . . . . . Heat Transferred 6377 | 111 962 518 3306 1332 148 . . . . . Parts Sabotaged . | . . . . . . . . . . . Parts Stolen . | . . . . . . . . . . . Parts Stripped . | . . . . . . . . . . . Power Chain Reactions 1 | . . . 1 . . . . . . . Alert | -11 -10 -10 -9 -9 -9 -9 -6 -6 -6 -6 ------- Run | Yrd Mat Min Mat Sto Rec Scr Fac Low Low Dat Maximum Alert Level 1 | . . . 1 . . . . . . . Low Security (%) 91 | 100 100 100 78 100 100 . 100 . . . Level 1 8 | . . . 21 . . . . . . . Level 2 . | . . . . . . . . . . . Level 3 . | . . . . . . . . . . . Level 4 . | . . . . . . . . . . . Level 5 . | . . . . . . . . . . . High Security . | . . . . . . . . . . . Max Security . | . . . . . . . . . . . Peak Influence 236 | 10 169 196 236 150 30 . 107 . . . Initial 83 | . . 46 . 83 16 . . . . . Average 68 | 1 72 44 126 67 4 . 12 . . . Influence Increases 2155 | 10 301 208 931 250 132 . 228 75 20 . Destroy 0b10 Robot/C 1280 | . 200 160 640 200 . . . 60 20 . Destroy 0b10 Robot/NC 165 | 10 25 15 60 . 10 . 40 5 . . Destroy Leader 304 | . 46 30 184 30 . . 4 10 . . Successful Hack 72 | . . . . 19 31 . 22 . . . Select Force Hacks 90 | . . . . . 90 . . . . . Disable Machine 30 | . . . 30 . . . . . . . Destroy Structure 19 | . . 3 2 1 1 . 12 . . . Partial Spotted 30 | . . . . . . . 30 . . . Lose Combat Pursuer 165 | . 30 . 15 . . . 120 . . . Influence Decreases 2155 | 10 180 329 732 406 175 . 121 127 75 . Entered New Map 270 | . . 75 . 116 27 . . 41 11 . Time Decay 1554 | 10 180 244 565 150 148 . 121 86 50 . Lost Part 54 | . . 10 30 . . . . . 14 . Purge Threat 277 | . . . 137 140 . . . . . . Squads Dispatched 21 | . 2 1 5 2 . . 11 . . . Investigation 8 | . . 1 1 . . . 6 . . . Extermination 1 | . . . . . . . 1 . . . Reinforcement 11 | . 2 . 4 2 . . 3 . . . Assault . | . . . . . . . . . . . Garrison 1 | . . . . . . . 1 . . . Intercept . | . . . . . . . . . . . Searches Triggered . | . . . . . . . . . . . Construction Impeded . | . . . . . . . . . . . Haulers Reinforced . | . . . . . . . . . . . Active Scanning Responses . | . . . . . . . . . . . Cargo Convoy Interrupts . | . . . . . . . . . . . Stealth | -11 -10 -10 -9 -9 -9 -9 -6 -6 -6 -6 --------- Run | Yrd Mat Min Mat Sto Rec Scr Fac Low Low Dat Distress Signals 7 | . . . 3 2 . . 2 . . . Communications Jammed . | . . . . . . . . . . . Distress Signals . | . . . . . . . . . . . Times Spotted 105 | . 15 8 44 13 . . 16 3 3 3 Peak Tracking Total 7 | . 3 4 6 5 . . 7 3 2 2 Tactical Retreats 6 | . 2 . 1 . . . 3 . . . Traps | -11 -10 -10 -9 -9 -9 -9 -6 -6 -6 -6 ------- Run | Yrd Mat Min Mat Sto Rec Scr Fac Low Low Dat Traps Triggered 1 | . . . . . . 1 . . . . Indirectly . | . . . . . . . . . . . Trap Hack Attempts . | . . . . . . . . . . . Triggered . | . . . . . . . . . . . Disarmed . | . . . . . . . . . . . Reprogrammed . | . . . . . . . . . . . Reused . | . . . . . . . . . . . Traps Extracted . | . . . . . . . . . . . Installed 1 | . . . . . . 1 . . . . Triggered . | . . . . . . . . . . . Most Traps Carried 1 | . . . . . . 1 1 . . . Machines | -11 -10 -10 -9 -9 -9 -9 -6 -6 -6 -6 ---------- Run | Yrd Mat Min Mat Sto Rec Scr Fac Low Low Dat Machines Disabled 3 | . . . 2 . . . . . . 1 Max in Single Turn 1 | . . . 1 . . . . . . 1 Garrison Access 3 | . . . . 1 . . 2 . . . Machines Repaired . | . . . . . . . . . . . Machines Dismantled . | . . . . . . . . . . . Machines Sabotaged . | . . . . . . . . . . . Overloaded Fab Kills . | . . . . . . . . . . . Hacking | -11 -10 -10 -9 -9 -9 -9 -6 -6 -6 -6 --------- Run | Yrd Mat Min Mat Sto Rec Scr Fac Low Low Dat Machines Accessed 40 | . 1 1 4 6 9 2 13 . . 4 Terminals 21 | . 1 . 4 5 6 . 5 . . . Fabricators 1 | . . . . . . . 1 . . . Repair Stations . | . . . . . . . . . . . Recycling Units 8 | . . . . . 3 . 5 . . . Scanalyzers . | . . . . . . . . . . . Garrison Access 3 | . . . . 1 . . 2 . . . Total Hacks 111 | . 3 1 7 13 24 3 28 . . 32 Successful 77 | . . 1 1 7 18 3 15 . . 32 Failed 34 | . 3 . 6 6 6 . 13 . . . Catastrophic 4 | . 1 . 2 . . . 1 . . . Database Lockouts . | . . . . . . . . . . . Manual 60 | . 3 . 7 10 20 . 20 . . . Terminals 57 | . 3 . 7 12 21 . 14 . . . Fabricators 3 | . . . . . . . 3 . . . Repair Stations . | . . . . . . . . . . . Recycling Units 12 | . . . . . 3 . 9 . . . Scanalyzers . | . . . . . . . . . . . Garrison Access 3 | . . . . 1 . . 2 . . . Terminal Hacks 51 | . . 1 1 4 6 3 4 . . 32 Record 12 | . . . . . . 1 . . . 11 Part Schematic 11 | . . . . . . . . . . 11 Robot Schematic 7 | . . . . . . . . . . 7 Prototype ID Bank 7 | . . . . . 4 . . . . 3 Open Door 4 | . . 1 . 2 . 1 . . . . Branch Access Points 1 | . . . . . . . 1 . . . Terminal Index 2 | . . . . 1 1 . . . . . Recycling Unit Index 1 | . . . . . 1 . . . . . Unreport Threat 2 | . . . 1 1 . . . . . . Locate Traps 1 | . . . . . . . 1 . . . Registered Components 1 | . . . . . . . 1 . . . Registered Prototypes 1 | . . . . . . . 1 . . . Proto ID Catalog 1 | . . . . . . 1 . . . . Fabricator Hacks 2 | . . . . . . . 2 . . . Load Schematic 1 | . . . . . . . 1 . . . Build 1 | . . . . . . . 1 . . . Repair Station Hacks . | . . . . . . . . . . . Recycling Unit Hacks . | . . . . . . . . . . . Scanalyzer . | . . . . . . . . . . . Garrison Access Hacks 3 | . . . . 1 . . 2 . . . Seal Access 3 | . . . . 1 . . 2 . . . Unauthorized Hacks 21 | . . . . 2 12 . 7 . . . Terminals 13 | . . . . 2 9 . 2 . . . Assimilate 1 | . . . . 1 . . . . . . Botnet 5 | . . . . . 4 . 1 . . . Operators 2 | . . . . 1 . . 1 . . . Skim 5 | . . . . . 5 . . . . . Fabricators . | . . . . . . . . . . . Repair Stations . | . . . . . . . . . . . Recycling Units 8 | . . . . . 3 . 5 . . . Tunnel 3 | . . . . . 3 . . . . . Fedlink 5 | . . . . . . . 5 . . . Scanalyzers . | . . . . . . . . . . . Garrison Access . | . . . . . . . . . . . Data Cores Recovered 2 | . . . 1 . . . 1 . . . Used . | . . . . . . . . . . . Hacking Detections 18 | . 1 . 4 2 6 . 5 . . . Full Trace Events 2 | . . . 1 . . . 1 . . . Feedback Events . | . . . . . . . . . . . Feedback Blocked . | . . . . . . . . . . . Robot Schematics Acquired 7 | . . . . . . . . . . 7 Robots Built . | . . . . . . . . . . . Authchips . | . . . . . . . . . . . Time . | . . . . . . . . . . . Total Robot Build Rating . | . . . . . . . . . . . Part Schematics Acquired 12 | . . . . . . . 1 . . 11 Parts Built 1 | . . . . . . . 1 . . . Authchips . | . . . . . . . . . . . Time 28 | . . . . . . . 28 . . . Total Part Build Rating 4 | . . . . . . . 4 . . . Parts Repaired . | . . . . . . . . . . . Time . | . . . . . . . . . . . Parts Recycled . | . . . . . . . . . . . Recycled Matter . | . . . . . . . . . . . Retrieved Matter . | . . . . . . . . . . . Retrieved Components . | . . . . . . . . . . . Parts Scanalyzed . | . . . . . . . . . . . Part Schematics Acquired . | . . . . . . . . . . . Parts Damaged . | . . . . . . . . . . . Bothacking | -11 -10 -10 -9 -9 -9 -9 -6 -6 -6 -6 ------------ Run | Yrd Mat Min Mat Sto Rec Scr Fac Low Low Dat Used RIF Installer . | . . . . . . . . . . . Robots Hacked . | . . . . . . . . . . . Non-combat . | . . . . . . . . . . . Combat . | . . . . . . . . . . . Robot Hacks Applied . | . . . . . . . . . . . Relay Couplers Released . | . . . . . . . . . . . Fabnet Peak Effective % . | . . . . . . . . . . . Robots Rewired . | . . . . . . . . . . . Allies Hacked . | . . . . . . . . . . . Hacks Repelled . | . . . . . . . . . . . Allies | -11 -10 -10 -9 -9 -9 -9 -6 -6 -6 -6 -------- Run | Yrd Mat Min Mat Sto Rec Scr Fac Low Low Dat Total Allies . | . . . . . . . . . . . Largest Group . | . . . . . . . . . . . Highest-Rated Group . | . . . . . . . . . . . Highest-Rated Ally . | . . . . . . . . . . . Total Orders . | . . . . . . . . . . . Ally Attacks . | . . . . . . . . . . . Total Damage . | . . . . . . . . . . . Kills . | . . . . . . . . . . . Allies Corrupted . | . . . . . . . . . . . Allies Melted . | . . . . . . . . . . . Intel | -11 -10 -10 -9 -9 -9 -9 -6 -6 -6 -6 ------- Run | Yrd Mat Min Mat Sto Rec Scr Fac Low Low Dat Active Infowar (turns) 4167 | 16 523 1091 1320 51 . . 585 215 211 155 Sensors 876 | . . . . . . . 450 215 211 . Seismic 3136 | 16 523 1091 1320 51 . . 135 . . . Machine Analysis 134 | . . . . . . . 134 . . . Jamming 155 | . . . . . . . . . . 155 Robot Analysis Total . | . . . . . . . . . . . Derelict Logs Recovered 3 | . . 2 . . . . . . 1 . Drone Launches . | . . . . . . . . . . . Drone Recoveries . | . . . . . . . . . . . Exploration | -11 -10 -10 -9 -9 -9 -9 -6 -6 -6 -6 ------------- Run | Yrd Mat Min Mat Sto Rec Scr Fac Low Low Dat Turns Passed 9695 | 97 523 1091 2203 350 996 2980 593 264 316 282 Spaces Moved 6250 | 47 258 622 889 113 397 1526 1333 603 360 102 Core 9 | 4 . . . . . . . . . 5 Treads 1170 | 43 258 622 69 . . 178 . . . . Legs . | . . . . . . . . . . . Wheels 2929 | . . . 820 113 397 1348 . . 154 97 Hover . | . . . . . . . . . . . Flight 2142 | . . . . . . . 1333 603 206 . Fastest Speed 27 | 50 160 160 160 210 210 100 28 27 27 95 Average Speed 128 | 150 160 160 194 210 210 189 28 27 66 102 Slowest Speed 300 | 160 160 160 210 210 210 240 28 31 112 300 Overloaded Moves . | . . . . . . . . . . . Propulsion Burnouts . | . . . . . . . . . . . Robots Hopped . | . . . . . . . . . . . Potential Cave-ins 5 | . . . . . . . . . 5 . Cave-ins Triggered . | . . . . . . . . . . . Exploration Rate (%) 61 | 4 54 96 80 25 88 79 40 73 60 78 Regions Visited 10 Branch Regions 7 Pre-discovered Areas 7 | . . 1 . . 4 . 1 . . 1 Known Exits Taken 3 | . . . . . . . 1 1 1 . Unknown Exits Taken 7 | 1 1 1 1 1 1 1 . . . . Scrap Searched 12 | . . 3 . . . 3 . 4 2 . Spaces Dug 28 | . . 1 . . . . 12 5 10 . Terrain Destroyed 30 | . . 3 . . . . 12 5 10 . Melee 27 | . . . . . . . 12 5 10 . Projectile 3 | . . 3 . . . . . . . . AOE . | . . . . . . . . . . . Terrain Rammed . | . . . . . . . . . . . Walls Destroyed . | . . . . . . . . . . . Machines Disabled . | . . . . . . . . . . . Actions | -11 -10 -10 -9 -9 -9 -9 -6 -6 -6 -6 --------- Run | Yrd Mat Min Mat Sto Rec Scr Fac Low Low Dat Total 7376 | 61 307 666 1206 173 554 1633 1509 662 397 208 Wait 499 | . 11 8 97 21 149 21 104 33 7 48 Move 6240 | 46 257 621 888 112 396 1525 1332 602 359 102 Hop . | . . . . . . . . . . . Pick Up 89 | 3 5 5 37 . 2 30 6 1 . . Fast Attach 28 | 7 . . 5 . . 3 9 2 2 . Attach 27 | . . 1 7 . 1 4 11 . . 3 Detach 12 | . . . 4 . . 5 2 . . 1 Swap 63 | 1 2 3 35 6 1 5 1 1 6 2 Drop 92 | . 1 2 32 3 2 39 13 . . . Fire 193 | 4 30 24 100 31 3 . . . . 1 Melee 128 | . . . . . . . 31 23 23 51 Ram . | . . . . . . . . . . . Kick . | . . . . . . . . . . . Crush 4 | . 1 2 1 . . . . . . . Escape Stasis . | . . . . . . . . . . . Rewire . | . . . . . . . . . . . Trap 1 | . . . . . . 1 . . . . Miscellaneous . | . . . . . . . . . . . Route ------- -11/Scrapyard -10/Materials (discovered 2 exits: *Mat / *Min) -10/Mines (discovered 2 exits: *Mat x2) -9/Materials (discovered 6 exits: [*Mat x3] / [*Min x2] / *Sto) -9/Storage -9/Recycling -9/Scraptown (discovered 2 exits: *Fac x2) -6/Factory (discovered 3 exits: *Fac / *Low x2) -6/Lower Caves -6/Lower Caves (discovered 2 exits: *Fac / *Dat) -6/Data Miner (discovered 1 exit: [*Pro]) History --------- Turn | Location | Event 2 | -11/Scrapyard | Met Revision 17 31 | -11/Scrapyard | Discovered new exit (range 16) 98 | -11/Scrapyard | Entered Materials 312 | -10/Materials | Build established: Mutant 524 | -10/Materials | Discovered new exit (range 5) 583 | -10/Materials | Discovered new exit (range 16) 621 | -10/Materials | Entered Mines 624 | -10/Mines | Met a Derelict bent on vengeance 732 | -10/Mines | Learned Materials trap positions 739 | -10/Mines | Discovered new exit (range 8) 919 | -10/Mines | Discovered new exit (range 10) 1112 | -10/Mines | Found a hidden stash of uninstalled traps 1287 | -10/Mines | Found a Scrap Suit stashed away for nefarious purposes 1514 | -10/Mines | Learned location of Zion (-7) 1548 | -10/Mines | Met a Derelict shopkeep closing up shop 1712 | -10/Mines | Entered Materials 1712 | -9/Materials | Evolved 2 slots: Propulsion x1, Utility x1 1713 | -9/Materials | Loaded intel: 22 trap records 1848 | -9/Materials | Discovered new exit (range 10) 2168 | -9/Materials | Discovered new exit (range 10) 2950 | -9/Materials | Discovered new exit (range 7) 3222 | -9/Materials | Discovered new exit (range 12) 3451 | -9/Materials | Discovered new exit (range 15) 3793 | -9/Materials | Discovered new exit (range 8) 3915 | -9/Materials | Entered Storage 4045 | -9/Storage | Core integrity fell below 50% 4256 | -9/Storage | Used back door to open Recycling access 4256 | -9/Storage | Discovered new exit (range 5) 4265 | -9/Storage | Entered Recycling 5023 | -9/Recycling | Learned 2 Materials zone layouts 5061 | -9/Recycling | Learned Materials repair station intel 5091 | -9/Recycling | Learned Storage terminal intel 5115 | -9/Recycling | Learned location of 2 exits from Materials 5116 | -9/Recycling | Learned Materials security intel 5118 | -9/Recycling | Learned Storage emergency access door positions 5130 | -9/Recycling | Learned Materials repair station intel 5152 | -9/Recycling | Learned Storage emergency access door positions 5183 | -9/Recycling | Learned location of 1 exit from Storage 5206 | -9/Recycling | Scanned before Scraplab entrance 5237 | -9/Recycling | Entered Scraplab 5254 | -9/Recycling | Discovered new exit (range 3) 5261 | -9/Recycling | Entered Scraptown 5574 | -9/Scraptown | Discovered new exit (range 11) 5761 | -9/Scraptown | Visited CR-KLE's Repair Center 5803 | -9/Scraptown | Visited Symbiants 5856 | -9/Scraptown | Visited The Evicted 5967 | -9/Scraptown | Visited Comm Corps 6013 | -9/Scraptown | Visited UFD Registry 6013 | -9/Scraptown | Registered with UFD as "Pipesink" 6064 | -9/Scraptown | Visited Analyses Database 6099 | -9/Scraptown | Visited Supply Room 6135 | -9/Scraptown | Visited Scrapoid Research Area 6160 | -9/Scraptown | Visited Science Guys 6458 | -9/Scraptown | Visited Scrap Suit Storage 6486 | -9/Scraptown | Visited Research Penetration Think Tank 6521 | -9/Scraptown | Visited Science Testing Area 6557 | -9/Scraptown | Visited Derelict Rescue Squad 6593 | -9/Scraptown | Visited Sword Containment 6631 | -9/Scraptown | Visited Curators Association 6865 | -9/Scraptown | Warned about trapping Scraptown 6954 | -9/Scraptown | Found Personal Teleporter v0.10 6971 | -9/Scraptown | Lost 6 allies 7183 | -9/Scraptown | Discovered new exit (range 3) 7192 | -9/Scraptown | System corruption cleaned by C-Scrubber 8190 | -9/Scraptown | Met Optimus 8190 | -9/Scraptown | Accepted into 0bPrime 8241 | -9/Scraptown | Entered Factory 8241 | -6/Factory | Evolved 6 slots: Propulsion x2, Utility x4 8295 | -6/Factory | Loaded intel: 8 recycling unit locations 8302 | -6/Factory | Learned location of Protoforge (-3) 8375 | -6/Factory | Discovered new exit (range 12) 8416 | -6/Factory | Tech Extrapolator generated special schematic: Deep Structural Scanner 8532 | -6/Factory | Build established: Hacker-Sprinter 8589 | -6/Factory | Identified exit to Factory 8658 | -6/Factory | Identified exit to Lower Caves 8777 | -6/Factory | Fabricated Deep Structural Scanner (x1) 8799 | -6/Factory | Garrison activated, responded to threat 8820 | -6/Factory | Spotted B-75 Beast 8834 | -6/Factory | Entered Lower Caves 8935 | -6/Lower Caves | Encountered a Warlord checkpoint 9078 | -6/Lower Caves | Discovered new exit (range 5) 9097 | -6/Lower Caves | Identified exit to Lower Caves 9098 | -6/Lower Caves | Entered another Lower Caves area 9099 | -6/Lower Caves | Discovered exit to Factory (range 6) 9204 | -6/Lower Caves | Learned Factory stockpile data 9329 | -6/Lower Caves | Spotted B-75 Beast 9408 | -6/Lower Caves | Discovered new exit (range 5) 9413 | -6/Lower Caves | Identified exit to Data Miner 9414 | -6/Lower Caves | Entered Data Miner 9414 | -6/Data Miner | Discovered new exit (range 6) 9433 | -6/Data Miner | Met Data Miner 9456 | -6/Data Miner | Learned location of Section 7 (-3) 9456 | -6/Data Miner | Acquired the access code to Warlord's prototype stash 9465 | -6/Data Miner | Received God Mode back door access code from Data Miner 9483 | -6/Data Miner | Data Conduit disabled 9657 | -6/Data Miner | Core integrity fell below 50% 9663 | -6/Data Miner | Lost 6 parts (1p4n1w) 9685 | -6/Data Miner | Core integrity fell below 20% 9696 | -6/Data Miner | Destroyed by Enhanced Grunt with Neutron Cannon Last Messages --------------- 09483_ Data Conduit disabled. Companion Sword: "We need to have a talk about your affection for that Mak. Sword." 09622_ CPS modules attach to Enhanced Grunt. 09623_ Nuclear Pulse Thruster destroyed. 09623_ CPS Tube destroyed. 09625_ Wheel destroyed. 09627_ VTOL Module destroyed. 09631_ Destroyed Prototype Device. 09632_ Cld. Ion Engine destroyed. 09632_ Wheel destroyed. 09641_ Destroyed Adv. Particle Charger. 09646_ CPS modules swiftly deploy to protect Enhanced Grunt components. 09646_ Enhanced Grunt destroyed. Companion Sword: "My slot!" 09672_ Imp. Utility Shielding destroyed. 09672_ Imp. Melee Analysis Suite destroyed. 09674_ Enhanced Grunt destroyed. 09676_ Acquired 20 matter. 09678_ Mak. Sword destroyed. Map ----- +----------------------------------------------------+ | | | | | | | | | | | | | | | | | | | | | | | | | | | ???????????????????????????? | | ???????????????????????????? | | ???????????????????????????? | | ???????????????????????????? | | ????????##?????????????????? | | ????####"############??????? | | ??###!! """"""""######?? | | ??#;%*==""""" """"""""### | | ??#]!!""""""" | | ??#!%""""" | | ??#!"*"""" | | ?##!""""" | | ?#;@""""" | | ?##g"""" " """" | | ??# """ """ """"## | | ??## " """" """""###? | | ???## """"""" "#####??? | | ????########"## "#??????? | | ???????????#"### "#??????? | | ???????????#"### "#??????? | | ???????????#"?# "#??????? | | ?????????????## "#??????? | | ?????????????# "#??????? | | ?????????????### "#??????? | | ???????????????# "##?????? | | ??????????????## ""#?????? | | ???????????#?## ""#?????? | | ??????????##"#"X ""#?????? | | ??????????""""" "####??? | | ??????????""""" X"""""??? | | ??????????##"#"X "##"#??? | | ???????????#?## X""""#??? | | ??????????????## "##"#??? | | ???????????????#######?????? | | ???????????????????????????? | | ???????????????????????????? | | ???????????????????????????? | +----------------------------------------------------+ Best States ------------- Heat Dissipation 50 Energy Generation 14 Energy Capacity 280 Matter Stores 300 Matter Capacity 300 Sight Range 16 Robot Scan Range 16 Terrain Scan Density 10 Jamming Range 12 Armor Coverage 675 Utility Shielding 66 Evasion (%) 64 Melee Accuracy 11 Recoil Reduction 3 Offensive Hacking 20 Defensive Hacking 12 Authchip Count 2 Item Schematics ----------------- Deep Structural Scanner | -6/Factory | Extrapolated Combat Drone Bay | -6/Data Miner | Free Lgt. Regenerative Plating | -6/Data Miner | Free Cld. Nuclear Pulse Thruster | -6/Data Miner | Free Exp. Heat Sink | -6/Data Miner | Free Ionic Axe | -6/Data Miner | Free Myomer Leg | -6/Data Miner | Free Graphene Brace | -6/Data Miner | Free Micro-nuke Launcher | -6/Data Miner | Free Field Propulsion Array | -6/Data Miner | Free Adv. Remote Force Field | -6/Data Miner | Free Mic. Antimatter Reactor | -6/Data Miner | Free Robot Schematics ------------------ X-62 Marksman | -6/Data Miner | Free R-10 Processor | -6/Data Miner | Free B-60 Warrior | -6/Data Miner | Free S-27 Virus | -6/Data Miner | Free A-15 Conveyor | -6/Data Miner | Free G-67 Veteran | -6/Data Miner | Free G-50 Soldier | -6/Data Miner | Free Fabricated ------------ Deep Structural Scanner | x1 | -6/Factory Repaired ---------- Nothing Alien Tech Used ----------------- None Achievements -------------- None Challenges ------------ None Game ------ Seed VisualArcTurbovents Manual? 0 Play Time 00:59:06 Cumulative 836.2 hours Start 2025.08.08 @ 20:33:22 End 2025.08.08 @ 21:32:14 Sessions 1 Manual Loads 0 Difficulty Rogue Special Mode None Game No. 783 Rogue 696 Adventurer 87 Explorer 0 Win Type - Total 55 Types 9/3/31/2/1/1/4/1/1/2 Lore% 97 Gallery% 93 Achievement% 82 Wizard Run 0 Options --------- Layout 0 ASCII 0 Keyboard 1 Movement Numpad Keybinds 0 Fullscreen 2 Font 18/SmallcapsGlow Map View 76x50 Zoom Use 0% Tactical HUD 1 Map Filters NONE Filters NONE Steam 1 RUN: 98936c00-363e-4349-8fe0-4c556d495daf